bitfinex-derivatives/quotes_BTCF0:USTF0_20210708
["timestamp","ask_amount","ask_price","bid_price","bid_amount"]
[1625758585233,0.9204,32777.0,32776.0,6.88033096]
[1625758591688,0.9204,32777.0,32776.0,5.08456151]
[1625758592437,0.9204,32777.0,32776.0,6.87512549]
[1625758592887,0.9204,32777.0,32776.0,5.08456151]
[1625758593639,0.9204,32777.0,32776.0,6.87475681]
[1625758599869,0.9204,32777.0,32776.0,6.15815859]
[1625758601372,0.9204,32777.0,32776.0,7.94740374]
[1625758603622,0.0001,32777.0,32776.0,7.94740374]
[1625758603774,0.057,32792.0,32776.0,7.94740374]
[1625758603924,0.24057544,32795.0,32776.0,7.94740374]
[1625758604075,0.24057544,32795.0,32794.0,0.48115088]
[1625758604301,0.77068323,32795.0,32794.0,0.48115088]
[1625758604750,1.83019356,32795.0,32794.0,0.48115088]
[1625758605651,0.24057544,32795.0,32794.0,0.48115088]
[1625758606855,0.88338529,32797.0,32794.0,0.48115088]
[1625758607005,0.35334551,32796.0,32794.0,0.48115088]
[1625758607306,0.88333855,32797.0,32794.0,0.48115088]
[1625758607456,0.35331864,32797.0,32794.0,0.48115088]
[1625758607757,0.88311513,32798.0,32794.0,0.83889333]
[1625758607906,0.88311513,32798.0,32794.0,0.48115088]
[1625758608206,0.88311513,32798.0,32794.0,0.83889338]
[1625758608506,0.35330287,32798.0,32795.0,4.7387]
[1625758609031,0.88305725,32798.0,32795.0,4.7387]
[1625758610382,0.88276704,32797.0,32795.0,4.7387]
[1625758610683,0.35314211,32797.0,32795.0,4.7387]
[1625758610982,0.35315028,32796.0,32795.0,4.7387]
[1625758611958,0.88341733,32796.0,32795.0,4.7387]
[1625758612107,0.35315028,32796.0,32795.0,4.7387]
[1625758613008,0.88358442,32796.0,32795.0,4.7387]
[1625758613159,0.53043414,32796.0,32795.0,4.7387]
[1625758615637,1.59434101,32796.0,32795.0,4.7387]
[1625758626828,1.59434101,32796.0,32795.0,5.09732109]
[1625758628705,1.59434101,32796.0,32795.0,5.63559401]
[1625758629684,1.59434101,32796.0,32795.0,5.86548401]
[1625758630057,2.30422291,32796.0,32795.0,5.86548401]
[1625758630883,3.54810498,32796.0,32795.0,6.22510011]
[1625758632911,3.54810498,32796.0,32795.0,7.30344475]
[1625758633362,4.97009381,32796.0,32795.0,7.30344475]
[1625758633660,4.97009381,32796.0,32795.0,6.22510011]
[1625758633809,4.97009381,32796.0,32795.0,5.99521011]
[1625758634035,4.97009381,32796.0,32795.0,2.33490373]
[1625758634185,5.19367381,32796.0,32795.0,2.33490373]
[1625758634336,5.43424925,32796.0,32794.0,1.5595565]
[1625758634635,4.26073269,32795.0,32794.0,0.48115088]
[1625758634788,9.53213269,32795.0,32794.0,0.48115088]
[1625758635085,9.53213269,32795.0,32789.0,1.25976843]
[1625758635385,2.66274675,32790.0,32787.0,1.50041486]
[1625758635688,2.6621157,32788.0,32787.0,1.25983942]
[1625758635836,2.9865457,32788.0,32786.0,1.25971559]
[1625758636134,2.6616596,32787.0,32786.0,1.25971559]
[1625758636361,2.6616596,32787.0,32785.0,1.25976332]
[1625758636362,3.14281048,32787.0,32785.0,1.25976332]
[1625758636662,2.66024385,32786.0,32784.0,1.2597713]
[1625758636810,2.66164376,32785.0,32784.0,1.2597713]
[1625758637142,2.66164376,32785.0,32784.0,1.0607713]
[1625758637421,2.66164376,32785.0,32781.0,1.44075918]
[1625758637566,1.41505435,32782.0,32781.0,1.44075918]
[1625758637714,1.41505435,32782.0,32779.0,1.68028267]
[1625758637862,4.8552,32780.0,32779.0,1.68028267]
[1625758638011,5.18475,32780.0,32779.0,1.68028267]
[1625758638310,5.18475,32780.0,32779.0,0.24057544]
[1625758638461,5.66590088,32780.0,32779.0,0.24057544]
[1625758639588,5.66590088,32780.0,32776.0,0.24057544]
[1625758639887,7.08009746,32780.0,32776.0,0.24057544]
[1625758640186,0.0046,32779.0,32776.0,0.24057544]
[1625758640489,0.24057544,32777.0,32775.0,5.65414189]
[1625758641167,0.24057544,32777.0,32776.0,1.43856477]
[1625758642369,0.41740827,32777.0,32776.0,1.43856477]
[1625758642519,0.24057544,32777.0,32776.0,1.43856477]
[1625758643119,0.41736472,32777.0,32776.0,1.43856477]
[1625758643269,0.24057544,32777.0,32776.0,1.43856477]
[1625758643569,0.4172772,32777.0,32775.0,5.6528893]
[1625758643720,0.17666252,32776.0,32775.0,5.6528893]
[1625758643945,0.17666252,32776.0,32775.0,4.2155]
[1625758645223,0.70200949,32777.0,32775.0,5.65282007]
[1625758646723,0.17597157,32776.0,32775.0,4.2155]
[1625758648672,0.17597157,32776.0,32772.0,1.67685027]
[1625758648824,0.26877157,32776.0,32772.0,1.43627483]
[1625758648976,0.17578513,32774.0,32771.0,1.43621269]
[1625758649275,5.0076,32772.0,32770.0,1.43624034]
[1625758649725,5.0076,32772.0,32768.0,1.67615467]
[1625758649874,5.0076,32772.0,32768.0,1.43557923]
[1625758650174,5.0076,32772.0,32765.0,7.67452663]
[1625758650175,5.18344305,32772.0,32767.0,1.4356466]
[1625758650325,0.0046,32771.0,32767.0,1.4356466]
[1625758650477,0.48115088,32768.0,32767.0,1.4356466]
[1625758650624,0.78117088,32768.0,32767.0,1.4356466]
[1625758653627,0.48115088,32768.0,32767.0,1.4356466]
[1625758654311,0.48115088,32768.0,32767.0,3.0489166]
[1625758654605,0.48115088,32768.0,32767.0,3.28949204]
[1625758655055,0.24057544,32770.0,32767.0,3.28949204]
[1625758655205,0.24057544,32770.0,32767.0,3.57539204]
[1625758655355,0.24057544,32770.0,32769.0,3.0469218]
[1625758656555,0.24057544,32770.0,32769.0,3.28749724]
[1625758657304,0.24057544,32770.0,32769.0,4.54191139]
[1625758660009,0.24057544,32770.0,32769.0,6.33371276]
[1625758661060,0.057,32781.0,32769.0,6.33371276]
[1625758661210,0.2929,32784.0,32780.0,1.43324639]
[1625758661363,0.2929,32784.0,32780.0,2.91397698]
[1625758661520,0.092,32787.0,32782.0,2.68707814]
[1625758661812,0.092,32787.0,32782.0,4.29934241]
[1625758661963,0.17655483,32792.0,32782.0,4.29934241]
[1625758662188,0.17658454,32793.0,32782.0,4.29934241]
[1625758662638,0.17658454,32793.0,32782.0,5.02106873]
[1625758662787,0.23358454,32793.0,32782.0,5.02106873]
[1625758662940,0.17655247,32792.0,32782.0,5.02106873]
[1625758663388,0.46945247,32792.0,32782.0,5.02106873]
[1625758664213,0.2929,32792.0,32782.0,5.02106873]
[1625758664440,0.46942117,32792.0,32782.0,6.09592607]
[1625758665416,0.46942117,32792.0,32782.0,9.83612607]
[1625758665565,0.17643872,32791.0,32782.0,8.2238618]
[1625758666691,0.08828605,32790.0,32782.0,8.2238618]
[1625758667442,0.26454407,32790.0,32782.0,8.2238618]
[1625758667667,0.08828605,32790.0,32782.0,8.2238618]
[1625758668268,0.2645434,32790.0,32782.0,8.2238618]
[1625758669243,0.0906,32787.0,32782.0,8.2238618]
[1625758670069,0.2645475,32790.0,32782.0,8.2238618]
[1625758672100,0.26462192,32791.0,32782.0,8.2238618]
[1625758672399,0.26462192,32791.0,32782.0,9.83664123]
[1625758672549,0.26484127,32793.0,32782.0,9.83664123]
[1625758672883,0.0883392,32793.0,32782.0,9.83664123]
[1625758673013,1.0027504,32794.0,32782.0,9.83664123]
[1625758673330,0.9144,32794.0,32792.0,1.07502554]
[1625758673469,0.9144,32794.0,32792.0,1.30072554]
[1625758674657,0.9144,32794.0,32793.0,0.72172632]
[1625758675259,0.9144,32794.0,32793.0,4.90152632]
[1625758679007,1.0024405,32794.0,32793.0,5.08063645]
[1625758679310,1.17823089,32794.0,32793.0,5.17019339]
[1625758680522,1.17823089,32794.0,32793.0,5.40658339]
[1625758680820,1.0024405,32794.0,32793.0,5.40658339]
[1625758681114,1.0024405,32794.0,32793.0,5.31702645]
[1625758682014,1.0024405,32794.0,32793.0,5.40657316]
[1625758682310,0.9144,32794.0,32793.0,5.31702645]
[1625758682616,0.9144,32794.0,32793.0,5.13791632]
[1625758685768,0.9144,32794.0,32793.0,5.31698759]
[1625758686219,0.9144,32794.0,32793.0,5.13791632]
[1625758686445,0.9144,32794.0,32793.0,5.31698972]
[1625758687273,0.9144,32794.0,32793.0,5.13791632]
[1625758687570,0.9144,32794.0,32793.0,5.31698439]
[1625758688925,0.9144,32794.0,32793.0,5.13791632]
[1625758695085,0.9144,32794.0,32793.0,5.85405275]
[1625758695683,0.9144,32794.0,32793.0,5.13791632]
[1625758696884,0.9144,32794.0,32793.0,5.4064436]
[1625758697335,0.9144,32794.0,32793.0,5.31693451]
[1625758697638,0.9144,32794.0,32793.0,5.13791632]
[1625758698086,0.9144,32794.0,32793.0,5.4064291]
[1625758699364,0.9144,32794.0,32793.0,5.31692484]
[1625758699740,0.9144,32794.0,32793.0,5.13791632]
[1625758701166,0.9144,32794.0,32793.0,5.85401905]
[1625758701390,0.9144,32794.0,32793.0,5.13791632]
[1625758701690,0.9144,32794.0,32793.0,5.85404611]
[1625758705898,0.9144,32794.0,32793.0,6.92850767]
[1625758708113,0.9144,32794.0,32793.0,8.18235965]
[1625758708232,1.01816469,32798.0,32793.0,8.18235965]
[1625758708377,0.9303,32798.0,32793.0,9.61516319]
[1625758708531,0.9303,32798.0,32797.0,1.79093556]
[1625758708828,0.9303,32798.0,32797.0,3.28511509]
[1625758709280,0.26850581,32803.0,32797.0,3.28511509]
[1625758709581,0.0046,32803.0,32802.0,1.7907026]
[1625758709728,0.0046,32803.0,32802.0,2.1049126]
[1625758709878,0.0046,32803.0,32802.0,3.35900374]
[1625758710178,0.08817387,32806.0,32802.0,3.35900374]
[1625758710481,0.26430182,32807.0,32805.0,0.71630072]
[1625758710634,0.08813008,32807.0,32805.0,0.71630072]
[1625758710928,0.17612237,32808.0,32805.0,0.71630072]
[1625758710929,0.26427191,32808.0,32806.0,1.43801834]
[1625758711378,0.08814954,32808.0,32807.0,3.6579]
[1625758711682,0.26417551,32809.0,32807.0,4.37418077]
[1625758711829,0.26417551,32809.0,32808.0,0.71679268]
[1625758711979,0.08811748,32809.0,32808.0,1.7919817]
[1625758712130,0.26435505,32809.0,32808.0,1.7919817]
[1625758712429,0.26428382,32810.0,32808.0,0.71679268]
[1625758712880,0.26428382,32810.0,32809.0,0.24057544]
[1625758713032,0.26428382,32810.0,32809.0,0.58688544]
[1625758713856,0.17613056,32810.0,32809.0,1.30382361]
[1625758714306,0.26420072,32810.0,32809.0,1.30382361]
[1625758714456,0.08807016,32810.0,32809.0,1.30382361]
[1625758714606,0.26399601,32811.0,32809.0,1.30382361]
[1625758714755,1.40627966,32817.0,32809.0,1.30382361]
[1625758714906,1.4064608,32818.0,32816.0,0.72172632]
[1625758715056,0.2929,32820.0,32816.0,0.98096632]
[1625758715505,0.2929,32820.0,32818.0,5.4171]
[1625758716411,1.40791479,32828.0,32818.0,5.4171]
[1625758716869,1.64977561,32830.0,32827.0,0.72172632]
[1625758717008,1.64977561,32830.0,32827.0,0.95209632]
[1625758717309,0.24057544,32830.0,32827.0,0.95209632]
[1625758718658,1.70098465,32833.0,32832.0,4.723]
[1625758718960,1.70098465,32833.0,32832.0,4.96357544]
[1625758724440,2.22777268,32833.0,32832.0,4.96357544]
[1625758724740,2.22777268,32833.0,32832.0,0.24057544]
[1625758725043,2.51027268,32833.0,32832.0,0.18047544]
[1625758725199,2.51027268,32833.0,32827.0,0.72172632]
[1625758725200,4.08964995,32833.0,32827.0,0.72172632]
[1625758725341,4.08964995,32833.0,32827.0,0.48115088]
[1625758725495,1.92952258,32828.0,32819.0,0.0046]
[1625758725642,0.52625714,32822.0,32819.0,0.0046]
[1625758725791,0.84456714,32822.0,32819.0,0.0046]
[1625758725947,0.31831,32822.0,32819.0,0.0046]
[1625758726543,0.31831,32822.0,32812.0,0.53508847]
[1625758726693,0.8446128,32822.0,32812.0,0.53508847]
[1625758726993,0.8446128,32822.0,32821.0,0.24057544]
[1625758727143,0.31831,32822.0,32821.0,0.24057544]
[1625758727293,0.76702506,32823.0,32821.0,0.24057544]
[1625758728345,0.24057544,32823.0,32821.0,0.24057544]
[1625758728944,0.48115088,32823.0,32821.0,0.24057544]
[1625758729698,1.40432811,32830.0,32821.0,0.24057544]
[1625758729868,0.527054,32826.0,32821.0,0.24057544]
[1625758730006,0.2929,32833.0,32821.0,0.24057544]
[1625758730297,0.2929,32833.0,32832.0,3.887]
[1625758730447,0.2929,32833.0,32832.0,4.11685]
[1625758730909,0.2929,32833.0,32832.0,4.83857632]
[1625758731423,0.0046,32835.0,32832.0,4.83857632]
[1625758732399,0.9659,32836.0,32832.0,4.83857632]
[1625758732998,0.9659,32836.0,32835.0,0.24057544]
[1625758739609,0.0001,32836.0,32835.0,0.24057544]
[1625758739792,1.23334214,32844.0,32835.0,0.24057544]
[1625758740079,0.4428,32852.0,32835.0,0.24057544]
[1625758740080,1.23476123,32848.0,32835.0,0.24057544]
[1625758740360,0.2929,32849.0,32835.0,0.24057544]
[1625758740810,0.2929,32849.0,32848.0,3.8289]
[1625758740961,0.2929,32849.0,32848.0,4.78848632]
[1625758742765,1.23537146,32853.0,32848.0,4.78848632]
[1625758742915,1.23537146,32853.0,32848.0,0.95958632]
[1625758743095,1.23537146,32853.0,32852.0,0.24057544]
[1625758743096,1.41127469,32853.0,32852.0,0.24057544]
[1625758743368,2.64506115,32853.0,32852.0,0.24057544]
[1625758744872,2.29090947,32853.0,32852.0,0.24057544]
[1625758745320,2.29090947,32853.0,32852.0,4.23847544]
[1625758745472,1.05712301,32853.0,32852.0,4.23847544]
[1625758745623,2.29088143,32853.0,32852.0,4.23847544]
[1625758746224,1.05712301,32853.0,32852.0,4.23847544]
[1625758746377,1.05763921,32855.0,32852.0,4.23847544]
[1625758746676,1.0571828,32854.0,32852.0,4.23847544]
[1625758746824,1.05634175,32853.0,32852.0,4.23847544]
[1625758747430,1.05634175,32853.0,32852.0,0.24057544]
[1625758747578,2.28799284,32853.0,32852.0,0.24057544]
[1625758748775,1.05634175,32853.0,32852.0,0.24057544]
[1625758749676,1.05634175,32853.0,32852.0,4.74327544]
[1625758750129,1.05540769,32854.0,32852.0,4.74327544]
[1625758750276,1.05499097,32855.0,32852.0,5.03239544]
[1625758751026,1.29572633,32856.0,32854.0,0.24057544]
[1625758751326,1.05443941,32855.0,32854.0,0.24057544]
[1625758752376,2.28260703,32855.0,32854.0,0.24057544]
[1625758753278,1.05443941,32855.0,32854.0,0.24057544]
[1625758753578,2.28250837,32855.0,32854.0,0.24057544]
[1625758753727,1.05443941,32855.0,32854.0,0.24057544]
[1625758755158,1.29345672,32856.0,32854.0,0.24057544]
[1625758755305,1.29345672,32856.0,32854.0,0.49130544]
[1625758755456,1.05269044,32855.0,32854.0,0.49130544]
[1625758756207,0.24057544,32856.0,32854.0,0.49130544]
[1625758756208,1.29331977,32856.0,32854.0,0.49130544]
[1625758757859,0.24057544,32856.0,32854.0,0.49130544]
[1625758758007,0.24057544,32856.0,32854.0,0.24057544]
[1625758758156,1.29395275,32856.0,32854.0,0.24057544]
[1625758760107,1.05341022,32855.0,32854.0,0.24057544]
[1625758762212,2.28379864,32855.0,32854.0,0.24057544]
[1625758763263,1.05341022,32855.0,32854.0,0.06337544]
[1625758763430,2.28400044,32855.0,32854.0,0.06337544]
[1625758763714,1.05341022,32855.0,32854.0,0.06337544]
[1625758764390,2.28622983,32855.0,32854.0,0.06337544]
[1625758765297,2.28622983,32855.0,32848.0,0.24057544]
[1625758765442,0.0926,32854.0,32848.0,0.24057544]
[1625758765745,1.0552626,32849.0,32848.0,0.24057544]
[1625758765894,1.0552626,32849.0,32832.0,3.887]
[1625758765895,2.70372114,32849.0,32834.0,0.0046]
[1625758766192,0.35171567,32844.0,32834.0,0.0046]
[1625758766493,0.3521354,32842.0,32834.0,0.0046]
[1625758766644,0.35204148,32841.0,32834.0,0.0046]
[1625758766942,0.27229,32842.0,32834.0,0.0046]
[1625758766943,0.3520044,32840.0,32834.0,0.0046]
[1625758767097,0.24057544,32837.0,32836.0,0.24057544]
[1625758770997,0.59291425,32837.0,32836.0,0.24057544]
[1625758773100,0.24057544,32837.0,32836.0,0.24057544]
[1625758774377,1.29831887,32837.0,32836.0,0.24057544]
[1625758774833,2.00350792,32837.0,32836.0,0.24057544]
[1625758779109,2.00350792,32837.0,32836.0,0.54965544]
[1625758779709,0.94576449,32837.0,32836.0,0.54965544]
[1625758780027,0.24057544,32837.0,32836.0,0.54965544]
[1625758780477,0.59329478,32837.0,32836.0,0.54965544]
[1625758780766,0.24057544,32837.0,32836.0,0.54965544]
[1625758781077,0.59317492,32837.0,32836.0,0.54965544]
[1625758784436,0.24057544,32837.0,32836.0,0.54965544]
[1625758784887,0.24057544,32837.0,32836.0,0.24057544]
[1625758785037,0.47055544,32837.0,32836.0,0.21077544]
[1625758785198,2.23284536,32837.0,32836.0,0.16197544]
[1625758785340,3.46648362,32837.0,32836.0,0.16197544]
[1625758786315,4.87735526,32837.0,32836.0,0.16197544]
[1625758786615,2.23284536,32837.0,32836.0,0.16197544]
[1625758787142,3.46732002,32837.0,32836.0,0.16197544]
[1625758787891,4.87794444,32837.0,32836.0,0.16197544]
[1625758790441,6.46534678,32837.0,32836.0,0.16197544]
[1625758790591,6.55634678,32837.0,32836.0,0.16197544]
[1625758792242,6.55634678,32837.0,32832.0,0.24057544]
[1625758792692,4.40770795,32833.0,32832.0,0.24057544]
[1625758792845,2.99729076,32833.0,32832.0,0.24057544]
[1625758793296,3.2378662,32833.0,32832.0,0.24057544]
[1625758795618,4.64787097,32833.0,32832.0,0.24057544]
[1625758796218,3.2378662,32833.0,32832.0,0.24057544]
[1625758796818,4.64737528,32833.0,32832.0,0.24057544]
[1625758800046,4.64737528,32833.0,32829.0,0.35839673]
[1625758800203,2.99163003,32830.0,32827.0,0.35839627]
[1625758800499,2.99015579,32828.0,32824.0,0.7168515]
[1625758800798,0.70347952,32825.0,32824.0,0.7168515]
[1625758800948,0.96125952,32825.0,32824.0,0.7168515]
[1625758801098,0.96125952,32825.0,32823.0,0.71688094]
[1625758801248,0.48115088,32824.0,32823.0,0.71688094]
[1625758801548,1.18424138,32824.0,32823.0,0.71688094]
[1625758802224,1.18424138,32824.0,32822.0,1.31589686]
[1625758802225,1.18424138,32824.0,32822.0,0.95750028]
[1625758802674,1.18424138,32824.0,32822.0,0.24057544]
[1625758804023,1.18884138,32824.0,32822.0,0.24057544]
[1625758804178,0.70224478,32823.0,32822.0,0.24057544]
[1625758804335,1.18790764,32824.0,32822.0,0.24057544]
[1625758805904,1.18790764,32824.0,32820.0,0.71638996]
[1625758806052,0.70167148,32823.0,32820.0,0.71638996]
[1625758806503,0.70167148,32823.0,32819.0,0.71624957]
[1625758806652,0.79267148,32823.0,32819.0,0.71624957]
[1625758806802,0.79267148,32823.0,32818.0,0.7162753]
[1625758806803,0.70127876,32822.0,32818.0,0.7162753]
[1625758807109,0.70127876,32822.0,32815.0,0.71631297]
[1625758807110,0.7005537,32819.0,32815.0,0.71631297]
[1625758807407,0.48115088,32816.0,32814.0,0.71632144]
[1625758807555,1.50351473,32816.0,32812.0,0.95689705]
[1625758807854,1.50351473,32816.0,32812.0,0.90299705]
[1625758808004,3.7341,32814.0,32812.0,0.56232161]
[1625758808152,3.7341,32814.0,32812.0,0.42522161]
[1625758808828,3.7341,32814.0,32810.0,1.07365934]
[1625758809428,0.24057544,32811.0,32810.0,1.07365934]
[1625758810555,0.24057544,32811.0,32809.0,1.07311637]
[1625758811310,0.24057544,32810.0,32809.0,1.07311637]
[1625758812432,0.24057544,32810.0,32808.0,1.07261849]
[1625758813407,0.24057544,32809.0,32808.0,1.07261849]
[1625758813560,0.46588544,32809.0,32808.0,1.07261849]
[1625758814458,0.46588544,32809.0,32808.0,2.32415761]
[1625758814758,0.46588544,32809.0,32808.0,1.07261849]
[1625758814908,0.24057544,32809.0,32808.0,1.07261849]
[1625758818061,0.24057544,32809.0,32807.0,1.07220002]
[1625758820011,0.24057544,32809.0,32808.0,0.53607924]
[1625758820611,0.24057544,32809.0,32808.0,0.86061924]
[1625758822189,0.24057544,32809.0,32808.0,1.93313869]
[1625758822489,0.24057544,32809.0,32808.0,0.86061924]
[1625758822640,0.24057544,32809.0,32808.0,0.53607924]
[1625758823325,0.24057544,32809.0,32807.0,0.53621234]
[1625758824444,0.24057544,32809.0,32808.0,0.53644798]
[1625758824670,0.24057544,32809.0,32807.0,0.53630992]
[1625758830104,0.24057544,32809.0,32806.0,0.77674569]
[1625758830297,0.24057544,32809.0,32807.0,0.53619728]
[1625758830597,0.24057544,32809.0,32806.0,0.77670522]
[1625758830822,0.24057544,32809.0,32807.0,0.53612576]
[1625758831439,0.24057544,32809.0,32806.0,0.24057544]
[1625758834203,0.24057544,32809.0,32806.0,0.77666163]
[1625758834956,0.24057544,32809.0,32806.0,0.24057544]
[1625758835107,0.24057544,32809.0,32806.0,0.77663718]
[1625758835726,0.24057544,32809.0,32806.0,0.24057544]
[1625758836306,0.24517544,32809.0,32806.0,0.24057544]
[1625758840212,0.24517544,32809.0,32806.0,0.51769544]
[1625758841864,0.24057544,32809.0,32806.0,0.51769544]
[1625758843141,0.24517544,32809.0,32806.0,1.05425508]
[1625758843290,0.24517544,32809.0,32806.0,0.77713508]
[1625758846294,1.03584624,32814.0,32806.0,0.77713508]
[1625758846444,0.091,32810.0,32806.0,0.24057544]
[1625758847497,0.33157544,32810.0,32809.0,0.24057544]
[1625758848698,0.24057544,32810.0,32809.0,0.24057544]
[1625758848998,0.33157544,32810.0,32809.0,0.24057544]
[1625758850799,0.33157544,32810.0,32809.0,0.11817544]
[1625758850950,0.24057544,32810.0,32809.0,0.11817544]
[1625758851700,0.33157544,32810.0,32809.0,0.01907544]
[1625758852163,0.33157544,32810.0,32809.0,0.28305544]
[1625758852751,0.33157544,32810.0,32809.0,5.11165544]
[1625758854326,0.24057544,32810.0,32809.0,5.11165544]
[1625758855227,0.24057544,32810.0,32809.0,6.36709923]
[1625758858009,0.24057544,32810.0,32809.0,1.53849923]
[1625758858307,0.33157544,32810.0,32809.0,0.28305544]
[1625758858459,0.33157544,32810.0,32809.0,0.01907544]
[1625758858609,6.65231621,32810.0,32809.0,0.01907544]
[1625758859358,1.56091621,32810.0,32809.0,0.01907544]
[1625758859657,0.33157544,32810.0,32809.0,0.01907544]
[1625758860933,0.24057544,32810.0,32809.0,0.01907544]
[1625758862885,0.24057544,32810.0,32809.0,1.27718561]
[1625758864610,1.47594274,32810.0,32809.0,1.27718561]
[1625758866037,2.88764965,32810.0,32809.0,0.01907544]
[1625758866488,2.88764965,32810.0,32809.0,1.27897834]
[1625758868138,3.59409362,32810.0,32809.0,1.99891329]
[1625758868439,3.68509362,32810.0,32809.0,1.99891329]
[1625758870314,3.68509362,32810.0,32809.0,3.43886459]
[1625758870466,3.68509362,32810.0,32809.0,1.99891329]
[1625758870763,3.68509362,32810.0,32809.0,3.43897959]
[1625758870916,2.18238671,32810.0,32809.0,3.43897959]
[1625758871517,0.94701941,32810.0,32809.0,3.43897959]
[1625758872193,2.18487826,32810.0,32809.0,3.43897959]
[1625758872492,0.94701941,32810.0,32809.0,3.43897959]
[1625758873542,2.1850784,32810.0,32809.0,3.43897959]
[1625758876473,4.66404594,32810.0,32809.0,4.51938522]
[1625758878123,3.24751835,32810.0,32809.0,4.51938522]
[1625758878272,4.6652475,32810.0,32809.0,4.51938522]
[1625758889238,3.24751835,32810.0,32809.0,4.51938522]
[1625758889390,1.76888392,32810.0,32809.0,6.14028402]
[1625758890215,0.70644397,32810.0,32809.0,6.14028402]
[1625758890888,0.71019688,32811.0,32809.0,6.14028402]
[1625758891188,0.71019688,32811.0,32810.0,6.12127307]
[1625758891337,0.71019688,32811.0,32810.0,6.41029307]
[1625758891791,0.71019688,32811.0,32810.0,6.65086851]
[1625758896219,1.77752207,32812.0,32810.0,6.65086851]
[1625758896370,0.7123155,32812.0,32811.0,6.11688721]
[1625758896897,1.78018556,32812.0,32811.0,6.11688721]
[1625758898471,1.78018556,32812.0,32811.0,4.49771118]
[1625758900647,0.7123155,32812.0,32811.0,4.49771118]
[1625758901398,1.78001753,32812.0,32811.0,4.49771118]
[1625758905229,0.7123155,32812.0,32811.0,4.49771118]
[1625758911658,3.01217015,32812.0,32811.0,4.49771118]
[1625758912586,3.01217015,32812.0,32811.0,3.0584436]
[1625758913487,4.42693691,32812.0,32811.0,1.74923727]
[1625758913786,4.42693691,32812.0,32811.0,1.68603727]
[1625758914010,4.42693691,32812.0,32811.0,1.62283727]
[1625758914161,4.42693691,32812.0,32811.0,1.59123727]
[1625758914310,4.42693691,32812.0,32811.0,1.52803727]
[1625758914461,4.42693691,32812.0,32811.0,1.49643727]
[1625758914612,4.42693691,32812.0,32811.0,1.46483727]
[1625758914761,4.51793691,32812.0,32811.0,1.43323727]
[1625758915738,4.51793691,32812.0,32811.0,1.40163727]
[1625758917013,4.42693691,32812.0,32811.0,1.40163727]
[1625758917463,4.51793691,32812.0,32811.0,1.40163727]
[1625758918363,4.42693691,32812.0,32811.0,1.40163727]
[1625758918665,4.51793691,32812.0,32811.0,1.40163727]
[1625758920768,0.091,32812.0,32810.0,0.24057544]
[1625758920917,3.72833176,32811.0,32810.0,0.24057544]
[1625758921216,3.72833176,32811.0,32810.0,1.31981358]
[1625758921819,3.73293176,32811.0,32810.0,1.31981358]
[1625758922796,3.82393176,32811.0,32810.0,1.31981358]
[1625758922947,3.81933176,32811.0,32810.0,1.31981358]
[1625758925350,3.72833176,32811.0,32810.0,1.31981358]
[1625758925726,3.81933176,32811.0,32810.0,1.31981358]
[1625758926183,3.72833176,32811.0,32810.0,1.31981358]
[1625758926776,3.81933176,32811.0,32810.0,1.31981358]
[1625758927078,3.72833176,32811.0,32810.0,1.31981358]
[1625758927677,3.81933176,32811.0,32810.0,1.31981358]
[1625758928353,3.72833176,32811.0,32810.0,1.31981358]
[1625758928803,3.81933176,32811.0,32810.0,1.31981358]
[1625758930008,3.72833176,32811.0,32810.0,1.31981358]
[1625758933765,3.72833176,32811.0,32810.0,2.5787986]
[1625758935938,3.72833176,32811.0,32810.0,1.49956046]
[1625758936239,3.72833176,32811.0,32810.0,2.57866152]
[1625758936392,4.26299987,32811.0,32810.0,3.11822953]
[1625758938717,5.84545088,32813.0,32810.0,3.11822953]
[1625758939020,5.84545088,32813.0,32810.0,0.24057544]
[1625758940595,5.84085088,32813.0,32810.0,0.24057544]
[1625758940745,5.93185088,32813.0,32810.0,0.24057544]
[1625758941346,5.84085088,32813.0,32810.0,0.24057544]
[1625758941798,0.24057544,32813.0,32810.0,0.24057544]
[1625758941949,0.33157544,32813.0,32810.0,0.24057544]
[1625758943148,0.24057544,32813.0,32810.0,0.24057544]
[1625758953740,1.42662723,32812.0,32810.0,0.24057544]
[1625758954340,1.31883615,32811.0,32810.0,0.24057544]
[1625758955107,0.24057544,32813.0,32810.0,0.24057544]
[1625758958769,0.24057544,32813.0,32812.0,1.25940913]
[1625758959070,1.48958844,32813.0,32812.0,1.25940913]
[1625758959220,1.48958844,32813.0,32812.0,4.92460913]
[1625758964177,3.09552764,32813.0,32812.0,3.6652]
[1625758964628,7.48392764,32813.0,32812.0,3.6652]
[1625758965079,5.87798844,32813.0,32812.0,3.6652]
[1625758965376,5.87798844,32813.0,32812.0,4.92504067]
[1625758968378,5.87798844,32813.0,32812.0,3.6652]
[1625758968379,7.48506507,32813.0,32812.0,3.6652]
[1625758968830,8.55638456,32813.0,32812.0,4.74556403]
[1625758969432,9.98476729,32813.0,32812.0,4.74556403]
[1625758970783,10.07576729,32813.0,32812.0,4.74556403]
[1625758971084,9.98476729,32813.0,32812.0,4.74556403]
[1625758971309,10.07576729,32813.0,32812.0,4.74556403]
[1625758972361,9.98476729,32813.0,32812.0,4.74556403]
[1625758972511,9.98476729,32813.0,32812.0,4.56316403]
[1625758972663,10.07576729,32813.0,32812.0,4.56316403]
[1625758972889,10.07576729,32813.0,32812.0,5.82414111]
[1625758973263,9.98476729,32813.0,32812.0,5.82414111]
[1625758973562,9.98476729,32813.0,32812.0,2.34134111]
[1625758973864,9.98476729,32813.0,32812.0,1.08036403]
[1625758975594,10.07576729,32813.0,32812.0,1.08036403]
[1625758975747,10.79023838,32813.0,32812.0,0.72052044]
[1625758976346,10.79023838,32813.0,32812.0,0.41892044]
[1625758977470,10.69923838,32813.0,32812.0,0.41892044]
[1625758977998,10.69923838,32813.0,32812.0,0.36022589]
[1625758978373,10.79023838,32813.0,32812.0,0.36022589]
[1625758978672,10.79023838,32813.0,32812.0,0.54033724]
[1625758978898,10.79023838,32813.0,32812.0,0.63039482]
[1625758979196,10.79023838,32813.0,32812.0,0.17769482]
[1625758979346,10.69923838,32813.0,32810.0,0.13097026]
[1625758979498,12.48299583,32813.0,32808.0,0.74418667]
[1625758979649,4.27979079,32809.0,32805.0,1.26050072]
[1625758979798,5.01264079,32809.0,32805.0,0.88870072]
[1625758979949,3.02855332,32806.0,32800.0,1.44066858]
[1625758980099,1.60334128,32806.0,32798.0,0.24057544]
[1625758980249,0.48115088,32799.0,32798.0,0.18257544]
[1625758980401,0.73167088,32799.0,32798.0,0.18257544]
[1625758980551,0.73167088,32799.0,32792.0,0.24057544]
[1625758980850,4.2359,32793.0,32792.0,0.24057544]
[1625758980999,4.2359,32793.0,32792.0,0.14537544]
[1625758981151,4.2359,32793.0,32792.0,0.13807544]
[1625758981301,4.2359,32793.0,32786.0,1.80109495]
[1625758981451,4.2359,32793.0,32785.0,2.04168716]
[1625758981753,4.2359,32793.0,32785.0,0.24057544]
[1625758982204,0.48115088,32786.0,32785.0,0.24057544]